[Event "Early-Titled-Tuesday-Blitz-May-14-2024"]
[Site "Chess.com"]
[Date "2024.05.14"]
[Round "2"]
[White "YouJustFoundYourGodfather"]
[Black "sterpfi"]
[Result "1-0"]
[WhiteElo "2548"]
[BlackElo "2327"]
[TimeControl "180+1"]
[EndTime "8:19:30 PDT"]
[Termination "YouJustFoundYourGodfather won by checkmate"]

1. b3 {[%clk 0:02:52.4]} 1... d5 {[%clk 0:02:57.6]} 2. Bb2 {[%clk 0:02:53.3]}
2... c5 {[%clk 0:02:58]} 3. Nf3 {[%clk 0:02:53.9]} 3... f6 {[%clk 0:02:57.7]} 4.
e3 {[%clk 0:02:54.8]} 4... e5 {[%clk 0:02:58.4]} 5. d3 {[%clk 0:02:52.4]} 5...
Nc6 {[%clk 0:02:58]} 6. Be2 {[%clk 0:02:51.1]} 6... Be6 {[%clk 0:02:57.2]} 7.
O-O {[%clk 0:02:51.3]} 7... Qd7 {[%clk 0:02:57.4]} 8. a3 {[%clk 0:02:50.2]} 8...
Bd6 {[%clk 0:02:57.7]} 9. c4 {[%clk 0:02:50.1]} 9... d4 {[%clk 0:02:56.4]} 10.
exd4 {[%clk 0:02:50.7]} 10... exd4 {[%clk 0:02:52.7]} 11. b4 {[%clk 0:02:51.1]}
11... b6 {[%clk 0:02:50.3]} 12. Re1 {[%clk 0:02:49]} 12... Nge7 {[%clk 0:02:50]}
13. Nbd2 {[%clk 0:02:34.1]} 13... O-O {[%clk 0:02:45.6]} 14. Bf1 {[%clk
0:02:24.8]} 14... cxb4 {[%clk 0:02:43.4]} 15. axb4 {[%clk 0:02:10]} 15... Bxb4
{[%clk 0:02:40.5]} 16. Qa4 {[%clk 0:01:59.7]} 16... Bg4 {[%clk 0:02:31.7]} 17.
Re4 {[%clk 0:01:52.1]} 17... Rfd8 {[%clk 0:02:05]} 18. h3 {[%clk 0:01:41.6]}
18... Bf5 {[%clk 0:01:52.6]} 19. Ree1 {[%clk 0:01:32.5]} 19... Bc3 {[%clk
0:01:48.3]} 20. Qa3 {[%clk 0:01:18]} 20... Bxb2 {[%clk 0:01:35.5]} 21. Qxb2
{[%clk 0:01:18.9]} 21... Ng6 {[%clk 0:01:31.4]} 22. Nb3 {[%clk 0:00:48.3]} 22...
Nge5 {[%clk 0:01:23]} 23. Nxe5 {[%clk 0:00:46.6]} 23... Nxe5 {[%clk 0:01:23.9]}
24. Rad1 {[%clk 0:00:41.2]} 24... a5 {[%clk 0:01:17.8]} 25. f4 {[%clk
0:00:30.7]} 25... Ng6 {[%clk 0:01:12]} 26. g4 {[%clk 0:00:30.4]} 26... Bxg4
{[%clk 0:01:04.5]} 27. hxg4 {[%clk 0:00:31.3]} 27... Qxg4+ {[%clk 0:00:54.8]}
28. Qg2 {[%clk 0:00:30.2]} 28... Qh4 {[%clk 0:00:40.5]} 29. Re4 {[%clk
0:00:13.9]} 29... a4 {[%clk 0:00:35.2]} 30. Nxd4 {[%clk 0:00:10.7]} 30... Nxf4
{[%clk 0:00:31.4]} 31. Qxg7+ {[%clk 0:00:05.5]} 31... Kxg7 {[%clk 0:00:30.5]}
32. Nf5+ {[%clk 0:00:06.4]} 32... Kh8 {[%clk 0:00:22]} 33. Nxh4 {[%clk
0:00:07.3]} 33... Ng6 {[%clk 0:00:15.5]} 34. Nxg6+ {[%clk 0:00:05.5]} 34... hxg6
{[%clk 0:00:16.4]} 35. Re6 {[%clk 0:00:02.9]} 35... Kg7 {[%clk 0:00:15.7]} 36.
Rxb6 {[%clk 0:00:03.1]} 36... a3 {[%clk 0:00:16]} 37. Ra1 {[%clk 0:00:03.5]}
37... a2 {[%clk 0:00:16.5]} 38. Rb2 {[%clk 0:00:03.8]} 38... f5 {[%clk
0:00:13.9]} 39. Raxa2 {[%clk 0:00:03.2]} 39... Rxa2 {[%clk 0:00:14.8]} 40. Rxa2
{[%clk 0:00:04.1]} 40... Kf6 {[%clk 0:00:15.2]} 41. Ra5 {[%clk 0:00:04.1]} 41...
g5 {[%clk 0:00:15.2]} 42. Kf2 {[%clk 0:00:04.6]} 42... g4 {[%clk 0:00:15.7]} 43.
Kg3 {[%clk 0:00:04.4]} 43... Kg5 {[%clk 0:00:15.7]} 44. Be2 {[%clk 0:00:02.9]}
44... Re8 {[%clk 0:00:14.9]} 45. Bxg4 {[%clk 0:00:02.6]} 45... Re3+ {[%clk
0:00:13.8]} 46. Kf2 {[%clk 0:00:03.3]} 46... Rxd3 {[%clk 0:00:12.2]} 47. Bxf5
{[%clk 0:00:04]} 47... Rc3 {[%clk 0:00:11.4]} 48. Bd3+ {[%clk 0:00:03]} 48...
Kf4 {[%clk 0:00:11.4]} 49. Ke2 {[%clk 0:00:03.1]} 49... Rc1 {[%clk 0:00:10.2]}
50. Rf5+ {[%clk 0:00:03.7]} 50... Kg4 {[%clk 0:00:10.3]} 51. Rf8 {[%clk
0:00:04.6]} 51... Ra1 {[%clk 0:00:10.3]} 52. Ke3 {[%clk 0:00:04.8]} 52... Ra3
{[%clk 0:00:10.6]} 53. Kd4 {[%clk 0:00:05.2]} 53... Kg5 {[%clk 0:00:10.9]} 54.
c5 {[%clk 0:00:05.5]} 54... Kh6 {[%clk 0:00:11.5]} 55. Bc4 {[%clk 0:00:06.1]}
55... Kg7 {[%clk 0:00:12.4]} 56. Rf7+ {[%clk 0:00:06.6]} 56... Kg6 {[%clk
0:00:12.2]} 57. Rf4 {[%clk 0:00:07.3]} 57... Ra4 {[%clk 0:00:12.6]} 58. c6
{[%clk 0:00:07.1]} 58... Kg5 {[%clk 0:00:12.9]} 59. Rf8 {[%clk 0:00:07.8]} 59...
Ra7 {[%clk 0:00:12.3]} 60. Kc5 {[%clk 0:00:08.2]} 60... Rh7 {[%clk 0:00:11.7]}
61. Kb6 {[%clk 0:00:08.4]} 61... Kg4 {[%clk 0:00:11.4]} 62. c7 {[%clk
0:00:08.5]} 62... Rh6+ {[%clk 0:00:11.4]} 63. Kb7 {[%clk 0:00:09.2]} 63... Rh1
{[%clk 0:00:12.1]} 64. c8=Q+ {[%clk 0:00:08.2]} 64... Kg3 {[%clk 0:00:11.5]} 65.
Rg8+ {[%clk 0:00:07.8]} 65... Kf2 {[%clk 0:00:12.2]} 66. Qf5+ {[%clk 0:00:07.8]}
66... Ke3 {[%clk 0:00:12.8]} 67. Re8+ {[%clk 0:00:08.3]} 67... Kd4 {[%clk
0:00:13.4]} 68. Qd5+ {[%clk 0:00:08.7]} 68... Kc3 {[%clk 0:00:14.1]} 69. Qd3+
{[%clk 0:00:09.2]} 69... Kb4 {[%clk 0:00:14.8]} 70. Qb3+ {[%clk 0:00:09.7]}
70... Kc5 {[%clk 0:00:15.6]} 71. Re5+ {[%clk 0:00:08.9]} 71... Kd6 {[%clk
0:00:15.9]} 72. Re6+ {[%clk 0:00:07.4]} 72... Kd7 {[%clk 0:00:16]} 73. Qd3#
{[%clk 0:00:07.7]} 1-0

[Event "Early-Titled-Tuesday-Blitz-May-14-2024"]
[Site "Chess.com"]
[Date "2024.05.14"]
[Round "2"]
[White "Incognito_Knight"]
[Black "Smiechu"]
[Result "0-1"]
[WhiteElo "2739"]
[BlackElo "2515"]
[TimeControl "180+1"]
[EndTime "8:19:34 PDT"]
[Termination "Smiechu won on time"]

1. e4 {[%clk 0:03:00.9]} 1... c5 {[%clk 0:02:59.7]} 2. d4 {[%clk 0:03:00.4]}
2... cxd4 {[%clk 0:02:59]} 3. Qxd4 {[%clk 0:03:01.3]} 3... Nc6 {[%clk
0:02:58.3]} 4. Qd3 {[%clk 0:03:01.8]} 4... g6 {[%clk 0:02:58.6]} 5. Nc3 {[%clk
0:03:01.9]} 5... Bg7 {[%clk 0:02:58.9]} 6. Nf3 {[%clk 0:03:02.4]} 6... d6 {[%clk
0:02:58.8]} 7. Be2 {[%clk 0:03:02.8]} 7... Nf6 {[%clk 0:02:59.4]} 8. O-O {[%clk
0:03:03.2]} 8... O-O {[%clk 0:03:00]} 9. Nd5 {[%clk 0:03:03.7]} 9... Bg4 {[%clk
0:02:54.9]} 10. c3 {[%clk 0:03:03.3]} 10... Bxf3 {[%clk 0:02:46.3]} 11. Qxf3
{[%clk 0:02:56.8]} 11... e6 {[%clk 0:02:45.3]} 12. Nxf6+ {[%clk 0:02:51.5]}
12... Qxf6 {[%clk 0:02:44.7]} 13. Qxf6 {[%clk 0:02:44.2]} 13... Bxf6 {[%clk
0:02:44.6]} 14. Be3 {[%clk 0:02:45.1]} 14... Rfd8 {[%clk 0:02:42.7]} 15. Rfd1
{[%clk 0:02:41.2]} 15... Rd7 {[%clk 0:02:42]} 16. Rd2 {[%clk 0:02:38.7]} 16...
Rad8 {[%clk 0:02:36.9]} 17. Rad1 {[%clk 0:02:36.6]} 17... Kf8 {[%clk 0:02:34.4]}
18. f4 {[%clk 0:02:22.6]} 18... Ke7 {[%clk 0:02:31.8]} 19. Bf3 {[%clk
0:02:16.3]} 19... Bg7 {[%clk 0:02:24.6]} 20. Kf2 {[%clk 0:02:04]} 20... Bf6
{[%clk 0:02:10.6]} 21. g3 {[%clk 0:02:01.3]} 21... Bg7 {[%clk 0:02:10.6]} 22. a4
{[%clk 0:01:52.9]} 22... Na5 {[%clk 0:01:57.5]} 23. Bxa7 {[%clk 0:01:17.5]}
23... Nc4 {[%clk 0:01:57]} 24. Rc2 {[%clk 0:00:50.1]} 24... Ra8 {[%clk
0:01:56.4]} 25. Bd4 {[%clk 0:00:45.6]} 25... f6 {[%clk 0:01:10.5]} 26. Be2
{[%clk 0:00:30]} 26... e5 {[%clk 0:01:03.2]} 27. Bxc4 {[%clk 0:00:26]} 27...
exd4 {[%clk 0:01:03.2]} 28. cxd4 {[%clk 0:00:25.7]} 28... f5 {[%clk 0:00:56.8]}
29. Bb5 {[%clk 0:00:17]} 29... Rdd8 {[%clk 0:00:53.2]} 30. Rc7+ {[%clk
0:00:16.6]} 30... Kf8 {[%clk 0:00:53.2]} 31. exf5 {[%clk 0:00:16.1]} 31... gxf5
{[%clk 0:00:51.4]} 32. Rxb7 {[%clk 0:00:14.5]} 32... Rac8 {[%clk 0:00:51.5]} 33.
Rd2 {[%clk 0:00:12.1]} 33... Rc1 {[%clk 0:00:46.9]} 34. a5 {[%clk 0:00:12]}
34... Ra1 {[%clk 0:00:45.4]} 35. a6 {[%clk 0:00:12.2]} 35... Ra8 {[%clk
0:00:43.6]} 36. Kg2 {[%clk 0:00:11.3]} 36... Ra2 {[%clk 0:00:43.6]} 37. Rc2
{[%clk 0:00:07.4]} 37... Bxd4 {[%clk 0:00:41.7]} 38. Rcc7 {[%clk 0:00:03.4]}
38... Rxb2+ {[%clk 0:00:40.3]} 39. Kh3 {[%clk 0:00:03.2]} 39... Bg1 {[%clk
0:00:34.8]} 40. Rf7+ {[%clk 0:00:03.4]} 40... Kg8 {[%clk 0:00:32.9]} 41. Rg7+
{[%clk 0:00:04.3]} 41... Kh8 {[%clk 0:00:32.3]} 42. Rxh7+ {[%clk 0:00:04.9]}
42... Kg8 {[%clk 0:00:32.4]} 43. Rhg7+ {[%clk 0:00:05.3]} 43... Kh8 {[%clk
0:00:32]} 44. Rh7+ {[%clk 0:00:05.9]} 44... Kg8 {[%clk 0:00:32.4]} 45. Rbg7+
{[%clk 0:00:05.7]} 45... Kf8 {[%clk 0:00:32.5]} 46. Rf7+ {[%clk 0:00:03.5]}
46... Kg8 {[%clk 0:00:32.8]} 47. Rhg7+ {[%clk 0:00:03.2]} 47... Kh8 {[%clk
0:00:33.1]} 48. Rh7+ {[%clk 0:00:02.4]} 48... Kg8 {[%clk 0:00:33.5]} 49. Rhg7+
{[%clk 0:00:01.7]} 49... Kh8 {[%clk 0:00:33.7]} 50. Kh4 {[%clk 0:00:02.3]} 50...
Bd4 {[%clk 0:00:25.5]} 51. Rh7+ {[%clk 0:00:02.3]} 51... Kg8 {[%clk 0:00:26]}
52. Bc4 {[%clk 0:00:02.4]} 52... Bf6+ {[%clk 0:00:20.3]} 53. Rxf6+ {[%clk
0:00:01.9]} 53... Kxh7 {[%clk 0:00:20.2]} 54. Rf7+ {[%clk 0:00:02.4]} 54... Kg6
{[%clk 0:00:20.2]} 55. g4 {[%clk 0:00:00.6]} 55... Rh8+ {[%clk 0:00:18.8]} 56.
Kg3 {[%clk 0:00:00.8]} 56... Rhxh2 {[%clk 0:00:18.9]} 57. gxf5+ {[%clk
0:00:00.8]} 57... Kh6 {[%clk 0:00:19.3]} 58. Rf6+ {[%clk 0:00:01.5]} 58... Kg7
{[%clk 0:00:18.9]} 59. Rg6+ {[%clk 0:00:02.1]} 59... Kh7 {[%clk 0:00:19]} 60.
Bd5 {[%clk 0:00:02.1]} 60... Rhd2 {[%clk 0:00:16.8]} 61. Bf3 {[%clk 0:00:01.8]}
61... Ra2 {[%clk 0:00:15.4]} 62. Bb7 {[%clk 0:00:01.4]} 62... Ra3+ {[%clk
0:00:15.1]} 63. Bf3 {[%clk 0:00:02.1]} 63... Rdd3 {[%clk 0:00:14.4]} 64. Kg4
{[%clk 0:00:01.7]} 64... Rxf3 {[%clk 0:00:14.3]} 65. f6 {[%clk 0:00:00.9]} 65...
Rg3+ {[%clk 0:00:13.3]} 66. Kf5 {[%clk 0:00:01.3]} 66... Rxg6 {[%clk 0:00:10.9]}
67. f7 {[%clk 0:00:02.2]} 67... Kg7 {[%clk 0:00:10.9]} 68. f8=Q+ {[%clk
0:00:02.6]} 68... Kxf8 {[%clk 0:00:11.1]} 69. Kxg6 {[%clk 0:00:03.5]} 69... Rxa6
{[%clk 0:00:11.3]} 0-1

[Event "Early-Titled-Tuesday-Blitz-May-14-2024"]
[Site "Chess.com"]
[Date "2024.05.14"]
[Round "2"]
[White "Shuvalov"]
[Black "margarita_2703"]
[Result "1/2-1/2"]
[WhiteElo "2554"]
[BlackElo "2357"]
[TimeControl "180+1"]
[EndTime "8:19:37 PDT"]
[Termination "Game drawn by repetition"]

1. d4 {[%clk 0:03:00.9]} 1... d5 {[%clk 0:03:00]} 2. c4 {[%clk 0:03:00.3]} 2...
e6 {[%clk 0:03:00.3]} 3. Nf3 {[%clk 0:02:59.8]} 3... Nf6 {[%clk 0:03:00.5]} 4.
Nc3 {[%clk 0:03:00]} 4... c6 {[%clk 0:02:56.5]} 5. Bg5 {[%clk 0:02:55.4]} 5...
h6 {[%clk 0:02:55.2]} 6. Bh4 {[%clk 0:02:54.5]} 6... Be7 {[%clk 0:02:55.4]} 7.
e3 {[%clk 0:02:54.1]} 7... O-O {[%clk 0:02:55.5]} 8. Bd3 {[%clk 0:02:52.8]} 8...
dxc4 {[%clk 0:02:55.4]} 9. Bxc4 {[%clk 0:02:52.8]} 9... b5 {[%clk 0:02:55.8]}
10. Bd3 {[%clk 0:02:52.5]} 10... Bb7 {[%clk 0:02:56.7]} 11. Rc1 {[%clk
0:02:51.6]} 11... a6 {[%clk 0:02:56.1]} 12. Bxf6 {[%clk 0:02:42.9]} 12... Bxf6
{[%clk 0:02:55.9]} 13. Ne4 {[%clk 0:02:41.4]} 13... Nd7 {[%clk 0:02:54.9]} 14.
O-O {[%clk 0:02:34.8]} 14... Be7 {[%clk 0:02:54.3]} 15. Bb1 {[%clk 0:02:31.8]}
15... Rc8 {[%clk 0:02:52.4]} 16. Qc2 {[%clk 0:02:22.1]} 16... f5 {[%clk
0:02:50.5]} 17. Nc5 {[%clk 0:02:20.8]} 17... Nxc5 {[%clk 0:02:44.9]} 18. dxc5
{[%clk 0:02:21.7]} 18... Bf6 {[%clk 0:02:45.6]} 19. Rfd1 {[%clk 0:02:19.3]}
19... Qe7 {[%clk 0:02:45.4]} 20. Rd6 {[%clk 0:02:18.2]} 20... Rcd8 {[%clk
0:02:45.5]} 21. Rcd1 {[%clk 0:02:16.1]} 21... Rxd6 {[%clk 0:02:44.7]} 22. cxd6
{[%clk 0:02:16]} 22... Qd7 {[%clk 0:02:41]} 23. Qc5 {[%clk 0:02:15.2]} 23... Rd8
{[%clk 0:02:39.2]} 24. b4 {[%clk 0:02:13]} 24... Bc8 {[%clk 0:02:35.5]} 25. Bc2
{[%clk 0:02:12]} 25... g6 {[%clk 0:02:25.1]} 26. Bb3 {[%clk 0:02:09.9]} 26...
Be7 {[%clk 0:02:06.6]} 27. Ne5 {[%clk 0:01:57.1]} 27... Bxd6 {[%clk 0:01:35.9]}
28. Nxd7 {[%clk 0:01:56.4]} 28... Bxc5 {[%clk 0:01:36.1]} 29. Nxc5 {[%clk
0:01:56.5]} 29... Rxd1+ {[%clk 0:01:36.1]} 30. Bxd1 {[%clk 0:01:57.4]} 30... Kf7
{[%clk 0:01:36.8]} 31. Bf3 {[%clk 0:01:55.3]} 31... e5 {[%clk 0:01:36]} 32. Bxc6
{[%clk 0:01:55.1]} 32... e4 {[%clk 0:01:36.4]} 33. f4 {[%clk 0:01:50.9]} 33...
exf3 {[%clk 0:01:35.6]} 34. gxf3 {[%clk 0:01:50.9]} 34... Kf6 {[%clk 0:01:36.5]}
35. f4 {[%clk 0:01:50.6]} 35... g5 {[%clk 0:01:36.5]} 36. Kf2 {[%clk 0:01:49.7]}
36... Ke7 {[%clk 0:01:35.7]} 37. Kg3 {[%clk 0:01:48.6]} 37... Kd6 {[%clk
0:01:35.9]} 38. Bg2 {[%clk 0:01:47.3]} 38... a5 {[%clk 0:01:36.3]} 39. a3 {[%clk
0:01:47]} 39... axb4 {[%clk 0:01:36.7]} 40. axb4 {[%clk 0:01:47.9]} 40... Kc7
{[%clk 0:01:31.7]} 41. h4 {[%clk 0:01:47.4]} 41... g4 {[%clk 0:01:31.5]} 42. Kf2
{[%clk 0:01:46.9]} 42... Kd6 {[%clk 0:01:29.8]} 43. Ke1 {[%clk 0:01:46.6]} 43...
Ke7 {[%clk 0:01:28]} 44. Kd2 {[%clk 0:01:46.3]} 44... Kf6 {[%clk 0:01:28.4]} 45.
Kc3 {[%clk 0:01:46.5]} 45... Kg6 {[%clk 0:01:28.8]} 46. Kd4 {[%clk 0:01:46.6]}
46... Kh5 {[%clk 0:01:28.9]} 47. e4 {[%clk 0:01:23.9]} 47... Kxh4 {[%clk
0:01:25.4]} 48. e5 {[%clk 0:01:22.6]} 48... Kg3 {[%clk 0:01:22.8]} 49. Bb7
{[%clk 0:01:22.6]} 49... Bxb7 {[%clk 0:01:08.7]} 50. Nxb7 {[%clk 0:01:23.5]}
50... Kxf4 {[%clk 0:01:09.6]} 51. e6 {[%clk 0:01:22.3]} 51... g3 {[%clk
0:01:09.8]} 52. e7 {[%clk 0:01:21.8]} 52... g2 {[%clk 0:00:56.7]} 53. e8=Q
{[%clk 0:01:18.5]} 53... g1=Q+ {[%clk 0:00:57]} 54. Kd5 {[%clk 0:01:14]} 54...
Qg2+ {[%clk 0:00:55.3]} 55. Kc5 {[%clk 0:01:14.2]} 55... Qxb7 {[%clk 0:00:55.1]}
56. Qh5 {[%clk 0:01:08.6]} 56... Qa6 {[%clk 0:00:46.7]} 57. Qh4+ {[%clk
0:01:02.5]} 57... Ke5 {[%clk 0:00:45.4]} 58. Qd4+ {[%clk 0:00:58.1]} 58... Ke6
{[%clk 0:00:44.1]} 59. Qd5+ {[%clk 0:00:56.6]} 59... Kf6 {[%clk 0:00:42.9]} 60.
Qd8+ {[%clk 0:00:54.5]} 60... Kg6 {[%clk 0:00:41.6]} 61. Qe8+ {[%clk 0:00:53.7]}
61... Kg5 {[%clk 0:00:41.3]} 62. Qe3+ {[%clk 0:00:47.1]} 62... f4 {[%clk
0:00:40]} 63. Qe5+ {[%clk 0:00:46.1]} 63... Kg4 {[%clk 0:00:39.8]} 64. Qg7+
{[%clk 0:00:44.1]} 64... Kf5 {[%clk 0:00:35]} 65. Qg2 {[%clk 0:00:34.9]} 65...
h5 {[%clk 0:00:26.2]} 66. Qd5+ {[%clk 0:00:32.6]} 66... Kf6 {[%clk 0:00:20.6]}
67. Qd4+ {[%clk 0:00:30.6]} 67... Kg5 {[%clk 0:00:20.3]} 68. Qd5+ {[%clk
0:00:28.4]} 68... Kh4 {[%clk 0:00:18.3]} 69. Qh1+ {[%clk 0:00:26.7]} 69... Kg3
{[%clk 0:00:18.6]} 70. Qg1+ {[%clk 0:00:26.6]} 70... Kf3 {[%clk 0:00:18.6]} 71.
Qf1+ {[%clk 0:00:22.7]} 71... Ke3 {[%clk 0:00:18.7]} 72. Qe1+ {[%clk 0:00:22.6]}
72... Kd3 {[%clk 0:00:17.4]} 73. Qd1+ {[%clk 0:00:20.8]} 73... Ke4 {[%clk
0:00:17.1]} 74. Qe2+ {[%clk 0:00:20.3]} 74... Kf5 {[%clk 0:00:15.6]} 75. Qxh5+
{[%clk 0:00:20.5]} 75... Ke4 {[%clk 0:00:15.7]} 76. Qe2+ {[%clk 0:00:20.4]}
76... Kf5 {[%clk 0:00:15.9]} 77. Qh5+ {[%clk 0:00:20.3]} 77... Ke4 {[%clk
0:00:16.2]} 78. Qe2+ {[%clk 0:00:20.5]} 78... Kf5 {[%clk 0:00:16.6]} 79. Qh5+
{[%clk 0:00:20.7]} 1/2-1/2

[Event "Early-Titled-Tuesday-Blitz-May-14-2024"]
[Site "Chess.com"]
[Date "2024.05.14"]
[Round "2"]
[White "temus_galaktionov"]
[Black "english_player_89"]
[Result "0-1"]
[WhiteElo "2876"]
[BlackElo "2617"]
[TimeControl "180+1"]
[EndTime "8:19:44 PDT"]
[Termination "english_player_89 won on time"]

1. d4 {[%clk 0:03:00.9]} 1... d5 {[%clk 0:02:59.8]} 2. c4 {[%clk 0:02:59.1]}
2... c6 {[%clk 0:03:00.2]} 3. Nf3 {[%clk 0:02:59]} 3... Nf6 {[%clk 0:03:00.1]}
4. Qb3 {[%clk 0:02:59.5]} 4... dxc4 {[%clk 0:02:58.9]} 5. Qxc4 {[%clk
0:03:00.4]} 5... Be6 {[%clk 0:02:57.9]} 6. Qc2 {[%clk 0:03:00]} 6... Nbd7 {[%clk
0:02:57]} 7. Nc3 {[%clk 0:03:00.6]} 7... Bg4 {[%clk 0:02:55.4]} 8. Bf4 {[%clk
0:02:58.7]} 8... e6 {[%clk 0:02:55]} 9. e3 {[%clk 0:02:58.6]} 9... Nd5 {[%clk
0:02:54.6]} 10. Bg3 {[%clk 0:02:57.4]} 10... Bxf3 {[%clk 0:02:46.1]} 11. gxf3
{[%clk 0:02:57.2]} 11... h5 {[%clk 0:02:46.3]} 12. h4 {[%clk 0:02:54.9]} 12...
N7f6 {[%clk 0:02:44.8]} 13. Qb3 {[%clk 0:02:50.3]} 13... Qb6 {[%clk 0:02:39]}
14. Bc4 {[%clk 0:02:50.9]} 14... Rd8 {[%clk 0:02:33.6]} 15. O-O {[%clk
0:02:46.1]} 15... Bd6 {[%clk 0:02:29.2]} 16. Qxb6 {[%clk 0:02:34.3]} 16... Nxb6
{[%clk 0:02:27.3]} 17. Bb3 {[%clk 0:02:34.3]} 17... Ke7 {[%clk 0:02:17.5]} 18.
Rad1 {[%clk 0:02:33.5]} 18... Nbd5 {[%clk 0:02:11.7]} 19. Ne4 {[%clk 0:02:33.6]}
19... Bxg3 {[%clk 0:02:10.1]} 20. Nxg3 {[%clk 0:02:31.8]} 20... a5 {[%clk
0:02:05.8]} 21. Rc1 {[%clk 0:02:28.5]} 21... Ra8 {[%clk 0:01:53.6]} 22. a3
{[%clk 0:02:14.8]} 22... a4 {[%clk 0:01:53]} 23. Ba2 {[%clk 0:02:08.2]} 23...
Ra5 {[%clk 0:01:53.3]} 24. Bc4 {[%clk 0:02:06.1]} 24... Nb6 {[%clk 0:01:50.7]}
25. Be2 {[%clk 0:02:05]} 25... g5 {[%clk 0:01:48.4]} 26. hxg5 {[%clk 0:02:03.2]}
26... Rxg5 {[%clk 0:01:47.9]} 27. Kh2 {[%clk 0:02:01.8]} 27... h4 {[%clk
0:01:47.1]} 28. Ne4 {[%clk 0:02:00.6]} 28... Nxe4 {[%clk 0:01:46.7]} 29. fxe4
{[%clk 0:02:01.5]} 29... Rhg8 {[%clk 0:01:08.4]} 30. Rg1 {[%clk 0:02:01.1]}
30... f5 {[%clk 0:01:05.2]} 31. Rxg5 {[%clk 0:01:48.3]} 31... Rxg5 {[%clk
0:01:04.7]} 32. e5 {[%clk 0:01:45.3]} 32... Nd5 {[%clk 0:00:59.4]} 33. Kh3
{[%clk 0:01:45.3]} 33... f4 {[%clk 0:00:58.6]} 34. e4 {[%clk 0:01:42.1]} 34...
Nb6 {[%clk 0:00:40.5]} 35. Bf3 {[%clk 0:01:39.4]} 35... Rg7 {[%clk 0:00:22.6]}
36. Kxh4 {[%clk 0:01:38.5]} 36... Nd7 {[%clk 0:00:13.7]} 37. Bh5 {[%clk
0:01:05.1]} 37... c5 {[%clk 0:00:13]} 38. dxc5 {[%clk 0:01:03.4]} 38... Nxe5
{[%clk 0:00:12.7]} 39. c6 {[%clk 0:00:40.3]} 39... bxc6 {[%clk 0:00:11.7]} 40.
Rc5 {[%clk 0:00:40.1]} 40... Kf6 {[%clk 0:00:10.8]} 41. Bd1 {[%clk 0:00:21.4]}
41... Rg1 {[%clk 0:00:10.8]} 42. Rxe5 {[%clk 0:00:16.1]} 42... Kxe5 {[%clk
0:00:10.1]} 43. Bxa4 {[%clk 0:00:16.2]} 43... c5 {[%clk 0:00:05.3]} 44. f3
{[%clk 0:00:14.2]} 44... Rf1 {[%clk 0:00:04.3]} 45. Kg4 {[%clk 0:00:14.2]} 45...
Rg1+ {[%clk 0:00:03.9]} 46. Kh4 {[%clk 0:00:14.8]} 46... Rg3 {[%clk 0:00:04]}
47. Bd1 {[%clk 0:00:14]} 47... Kd4 {[%clk 0:00:04.3]} 48. b4 {[%clk 0:00:13.4]}
48... c4 {[%clk 0:00:04.1]} 49. a4 {[%clk 0:00:13]} 49... c3 {[%clk 0:00:04.1]}
50. a5 {[%clk 0:00:13.1]} 50... Rg1 {[%clk 0:00:03.8]} 51. Bc2 {[%clk
0:00:11.4]} 51... Rg2 {[%clk 0:00:03.4]} 52. Ba4 {[%clk 0:00:10.2]} 52... c2
{[%clk 0:00:03.1]} 53. Bxc2 {[%clk 0:00:10.2]} 53... Rxc2 {[%clk 0:00:04]} 54.
b5 {[%clk 0:00:09.1]} 54... Ra2 {[%clk 0:00:03.6]} 55. a6 {[%clk 0:00:08]} 55...
Kc5 {[%clk 0:00:03.8]} 56. Kg5 {[%clk 0:00:08.4]} 56... Kxb5 {[%clk 0:00:03.9]}
57. Kxf4 {[%clk 0:00:09]} 57... Rxa6 {[%clk 0:00:04.2]} 58. Ke5 {[%clk
0:00:09.9]} 58... Kc5 {[%clk 0:00:04.5]} 59. f4 {[%clk 0:00:10.4]} 59... Rb6
{[%clk 0:00:04.2]} 60. f5 {[%clk 0:00:10.7]} 60... exf5 {[%clk 0:00:04.4]} 61.
exf5 {[%clk 0:00:11.6]} 61... Kc6 {[%clk 0:00:04.9]} 62. Ke6 {[%clk 0:00:12.2]}
62... Kc7+ {[%clk 0:00:04.6]} 63. Ke7 {[%clk 0:00:12.7]} 63... Rb2 {[%clk
0:00:04.6]} 64. f6 {[%clk 0:00:13.3]} 64... Re2+ {[%clk 0:00:05.2]} 65. Kf8
{[%clk 0:00:13.4]} 65... Kd7 {[%clk 0:00:05.8]} 66. f7 {[%clk 0:00:13.9]} 66...
Rf2 {[%clk 0:00:06.2]} 67. Kg8 {[%clk 0:00:11.5]} 67... Ke7 {[%clk 0:00:07.1]}
68. Kg7 {[%clk 0:00:10.6]} 68... Rxf7+ {[%clk 0:00:07.7]} 69. Kh8 {[%clk
0:00:11.5]} 69... Rf6 {[%clk 0:00:07.6]} 70. Kg8 {[%clk 0:00:12.4]} 70... Rf2
{[%clk 0:00:07.7]} 71. Kg7 {[%clk 0:00:13.3]} 71... Rg2+ {[%clk 0:00:08.1]} 72.
Kh6 {[%clk 0:00:13.4]} 72... Kf6 {[%clk 0:00:08.7]} 73. Kh5 {[%clk 0:00:14.3]}
73... Rg1 {[%clk 0:00:09.2]} 74. Kh4 {[%clk 0:00:15.2]} 74... Rg8 {[%clk
0:00:09.3]} 75. Kh3 {[%clk 0:00:16.1]} 75... Kf5 {[%clk 0:00:09.8]} 0-1